[Event "*** Titled Tuesday Blitz"]
[Site "Chess.com"]
[Date "2021.03.02"]
[Round "7"]
[White "dbrankovic68"]
[Black "NaciSAN"]
[Result "1/2-1/2"]
[WhiteElo "2471"]
[BlackElo "2302"]
[TimeControl "180+1"]
[EndTime "11:20:45 PST"]
[Termination "Game drawn - insufficient material"]

1. e4 {[%clk 0:02:59.8]} 1... e5 {[%clk 0:02:59.5]} 2. Nf3 {[%clk 0:02:59.5]}
2... Nc6 {[%clk 0:03:00]} 3. c3 {[%clk 0:03:00.1]} 3... Nf6 {[%clk 0:02:55.8]}
4. d4 {[%clk 0:02:59]} 4... d6 {[%clk 0:02:56]} 5. Bd3 {[%clk 0:02:57.6]} 5...
Be7 {[%clk 0:02:55.4]} 6. h3 {[%clk 0:02:57.8]} 6... Bd7 {[%clk 0:02:55.3]} 7.
O-O {[%clk 0:02:58.2]} 7... O-O {[%clk 0:02:55]} 8. Re1 {[%clk 0:02:58.7]} 8...
Re8 {[%clk 0:02:54.4]} 9. Nbd2 {[%clk 0:02:58.5]} 9... h6 {[%clk 0:02:54]} 10.
Nf1 {[%clk 0:02:58.5]} 10... Bf8 {[%clk 0:02:52.6]} 11. Ng3 {[%clk 0:02:58.8]}
11... g6 {[%clk 0:02:52.9]} 12. Be3 {[%clk 0:02:47.8]} 12... Bg7 {[%clk
0:02:52.6]} 13. dxe5 {[%clk 0:02:39.9]} 13... Nxe5 {[%clk 0:02:51.7]} 14. Nxe5
{[%clk 0:02:39.2]} 14... dxe5 {[%clk 0:02:52.2]} 15. Bc4 {[%clk 0:02:36.3]}
15... Be6 {[%clk 0:02:52]} 16. Qb3 {[%clk 0:02:36]} 16... Bxc4 {[%clk
0:02:50.9]} 17. Qxc4 {[%clk 0:02:35.4]} 17... c6 {[%clk 0:02:39.1]} 18. Rad1
{[%clk 0:02:32.6]} 18... Qc7 {[%clk 0:02:38.9]} 19. Rd2 {[%clk 0:02:30.2]} 19...
Rad8 {[%clk 0:02:36.5]} 20. Red1 {[%clk 0:02:29.9]} 20... Rxd2 {[%clk
0:02:31.3]} 21. Rxd2 {[%clk 0:02:29.9]} 21... Nd7 {[%clk 0:02:20.2]} 22. Nf1
{[%clk 0:02:18]} 22... Nf8 {[%clk 0:02:18.6]} 23. Nh2 {[%clk 0:02:14.2]} 23...
Ne6 {[%clk 0:02:12.7]} 24. Ng4 {[%clk 0:02:13.8]} 24... h5 {[%clk 0:02:10.5]}
25. Nh2 {[%clk 0:02:13.8]} 25... Rd8 {[%clk 0:02:01.2]} 26. Rxd8+ {[%clk
0:02:10.9]} 26... Nxd8 {[%clk 0:02:02.1]} 27. Bxa7 {[%clk 0:02:01.8]} 27... b6
{[%clk 0:01:59.3]} 28. Qa6 {[%clk 0:02:01.2]} 28... b5 {[%clk 0:01:43.4]} 29.
Bb6 {[%clk 0:01:59.6]} 29... Qb7 {[%clk 0:01:41.4]} 30. Qxb7 {[%clk 0:01:56.6]}
30... Nxb7 {[%clk 0:01:42.3]} 31. Kf1 {[%clk 0:01:51]} 31... Bh6 {[%clk
0:01:41.3]} 32. Ke2 {[%clk 0:01:49.3]} 32... Bc1 {[%clk 0:01:40.1]} 33. b3
{[%clk 0:01:49.4]} 33... Kf8 {[%clk 0:01:36.6]} 34. Nf3 {[%clk 0:01:46.5]} 34...
f6 {[%clk 0:01:35.2]} 35. Be3 {[%clk 0:01:40]} 35... Ba3 {[%clk 0:01:33]} 36.
Kd3 {[%clk 0:01:38.2]} 36... Ke7 {[%clk 0:01:32.6]} 37. g4 {[%clk 0:01:38.3]}
37... hxg4 {[%clk 0:01:32]} 38. hxg4 {[%clk 0:01:38.5]} 38... Ke6 {[%clk
0:01:26]} 39. Nd2 {[%clk 0:01:30.4]} 39... f5 {[%clk 0:00:55.9]} 40. exf5+
{[%clk 0:01:25.1]} 40... gxf5 {[%clk 0:00:56.8]} 41. f3 {[%clk 0:01:25]} 41...
e4+ {[%clk 0:00:54.5]} 42. Ke2 {[%clk 0:01:23.9]} 42... exf3+ {[%clk 0:00:54.1]}
43. Kxf3 {[%clk 0:01:24.1]} 43... fxg4+ {[%clk 0:00:54.3]} 44. Kxg4 {[%clk
0:01:24.2]} 44... Bc1 {[%clk 0:00:49.6]} 45. Kf3 {[%clk 0:01:22]} 45... Bxd2
{[%clk 0:00:43.5]} 46. Bxd2 {[%clk 0:01:21.4]} 46... Kd5 {[%clk 0:00:43.3]} 47.
Ke3 {[%clk 0:01:21.4]} 47... c5 {[%clk 0:00:42.1]} 48. Kd3 {[%clk 0:01:12.5]}
48... c4+ {[%clk 0:00:42.1]} 49. Kc2 {[%clk 0:01:12.7]} 49... cxb3+ {[%clk
0:00:41.4]} 50. axb3 {[%clk 0:01:09.5]} 50... Nd6 {[%clk 0:00:37.8]} 51. Be3
{[%clk 0:01:08.2]} 51... Ne4 {[%clk 0:00:36.7]} 52. Kd3 {[%clk 0:01:04.3]} 52...
Nd6 {[%clk 0:00:34.8]} 53. Bf4 {[%clk 0:01:00.6]} 53... Nf5 {[%clk 0:00:34.1]}
54. Bb8 {[%clk 0:00:57.5]} 54... Ne7 {[%clk 0:00:33.3]} 55. Kc2 {[%clk
0:00:56.3]} 55... Nc6 {[%clk 0:00:30.4]} 56. Bg3 {[%clk 0:00:56.7]} 56... Ne7
{[%clk 0:00:24.3]} 57. Kb2 {[%clk 0:00:55.8]} 57... Nf5 {[%clk 0:00:22.7]} 58.
Bf2 {[%clk 0:00:54.3]} 58... Nd6 {[%clk 0:00:22.1]} 59. Ka3 {[%clk 0:00:53.5]}
59... Ne4 {[%clk 0:00:20.2]} 60. Bd4 {[%clk 0:00:51.7]} 60... Kc6 {[%clk
0:00:14.9]} 61. Kb4 {[%clk 0:00:51.4]} 61... Nd2 {[%clk 0:00:14]} 62. Be5 {[%clk
0:00:47.3]} 62... Nf3 {[%clk 0:00:13.3]} 63. Bf6 {[%clk 0:00:46.6]} 63... Nd2
{[%clk 0:00:13.2]} 64. Ka3 {[%clk 0:00:45.4]} 64... Nf3 {[%clk 0:00:12.8]} 65.
Bg7 {[%clk 0:00:44.9]} 65... Nd2 {[%clk 0:00:13]} 66. Kb2 {[%clk 0:00:44.7]}
66... Nf3 {[%clk 0:00:13.1]} 67. Kc2 {[%clk 0:00:44.5]} 67... Kd5 {[%clk
0:00:13.4]} 68. Kd3 {[%clk 0:00:42.9]} 68... Ne1+ {[%clk 0:00:13.4]} 69. Ke2
{[%clk 0:00:39.6]} 69... Ng2 {[%clk 0:00:12]} 70. Bh6 {[%clk 0:00:36.8]} 70...
Nh4 {[%clk 0:00:11.8]} 71. Kd3 {[%clk 0:00:34.5]} 71... Nf5 {[%clk 0:00:11.4]}
72. Bf4 {[%clk 0:00:34.8]} 72... Ne7 {[%clk 0:00:11]} 73. Kc2 {[%clk 0:00:34]}
73... Nc6 {[%clk 0:00:10.2]} 74. Bg3 {[%clk 0:00:33.3]} 74... Ne7 {[%clk
0:00:10.2]} 75. Kb2 {[%clk 0:00:33.5]} 75... Nf5 {[%clk 0:00:10.2]} 76. Bf2
{[%clk 0:00:32.6]} 76... Kc6 {[%clk 0:00:10.1]} 77. Ka3 {[%clk 0:00:32.6]} 77...
Nd6 {[%clk 0:00:10.3]} 78. Kb4 {[%clk 0:00:31.8]} 78... Ne4 {[%clk 0:00:10.3]}
79. Be3 {[%clk 0:00:30.7]} 79... Ng3 {[%clk 0:00:10.2]} 80. Ka5 {[%clk
0:00:29.3]} 80... Ne2 {[%clk 0:00:09.5]} 81. Bd2 {[%clk 0:00:26.8]} 81... Ng3
{[%clk 0:00:08.3]} 82. Kb4 {[%clk 0:00:26.1]} 82... Ne4 {[%clk 0:00:08.7]} 83.
Be3 {[%clk 0:00:26.4]} 83... Ng3 {[%clk 0:00:08.5]} 84. c4 {[%clk 0:00:26.2]}
84... bxc4 {[%clk 0:00:08.5]} 85. Kxc4 {[%clk 0:00:26.6]} 85... Nf5 {[%clk
0:00:08.8]} 86. Bc5 {[%clk 0:00:25.1]} 86... Kb7 {[%clk 0:00:08.5]} 87. b4
{[%clk 0:00:25.3]} 87... Ng3 {[%clk 0:00:07.6]} 88. b5 {[%clk 0:00:20.9]} 88...
Ne4 {[%clk 0:00:07.2]} 89. Bb4 {[%clk 0:00:21.1]} 89... Nf6 {[%clk 0:00:06.8]}
90. Kc5 {[%clk 0:00:19.5]} 90... Ne8 {[%clk 0:00:07]} 91. Kd5 {[%clk 0:00:19.5]}
91... Nc7+ {[%clk 0:00:07.2]} 92. Kc4 {[%clk 0:00:18.7]} 92... Nxb5 {[%clk
0:00:08.1]} 1/2-1/2

[Event "*** Titled Tuesday Blitz"]
[Site "Chess.com"]
[Date "2021.03.02"]
[Round "7"]
[White "MarcLonoff"]
[Black "ARTHURMOTIVATOR"]
[Result "1-0"]
[WhiteElo "2140"]
[BlackElo "2330"]
[TimeControl "180+1"]
[EndTime "11:20:53 PST"]
[Termination "MarcLonoff won by resignation"]

1. c4 {[%clk 0:02:57.2]} 1... e5 {[%clk 0:02:58.5]} 2. Nc3 {[%clk 0:02:56.7]}
2... Nc6 {[%clk 0:02:58.7]} 3. g3 {[%clk 0:02:56.7]} 3... g6 {[%clk 0:02:58.9]}
4. Bg2 {[%clk 0:02:56.6]} 4... Bg7 {[%clk 0:02:59.5]} 5. e4 {[%clk 0:02:55.9]}
5... d6 {[%clk 0:02:58.3]} 6. Nge2 {[%clk 0:02:55.8]} 6... h5 {[%clk 0:02:58]}
7. h3 {[%clk 0:02:50.1]} 7... Nge7 {[%clk 0:02:53.7]} 8. d3 {[%clk 0:02:45.7]}
8... Be6 {[%clk 0:02:48.4]} 9. Nd5 {[%clk 0:02:44.9]} 9... Qd7 {[%clk 0:01:57]}
10. Bg5 {[%clk 0:02:15.1]} 10... Bxd5 {[%clk 0:01:56.2]} 11. cxd5 {[%clk
0:02:08]} 11... Nd8 {[%clk 0:01:55.9]} 12. Qb3 {[%clk 0:02:07.1]} 12... f6
{[%clk 0:01:54.7]} 13. Be3 {[%clk 0:02:06.7]} 13... b6 {[%clk 0:01:54.5]} 14. h4
{[%clk 0:01:39.2]} 14... O-O {[%clk 0:01:49.6]} 15. Bh3 {[%clk 0:01:28]} 15...
f5 {[%clk 0:01:46]} 16. O-O {[%clk 0:01:23.2]} 16... Nb7 {[%clk 0:01:39.7]} 17.
d4 {[%clk 0:01:13.7]} 17... Qe8 {[%clk 0:01:34.5]} 18. dxe5 {[%clk 0:01:05.1]}
18... Bxe5 {[%clk 0:01:31.7]} 19. f4 {[%clk 0:01:05.3]} 19... Bg7 {[%clk
0:01:27.1]} 20. e5 {[%clk 0:01:05.2]} 20... Nc5 {[%clk 0:01:00.2]} 21. Qc4
{[%clk 0:00:54]} 21... Qa4 {[%clk 0:00:51.8]} 22. Qxa4 {[%clk 0:00:42.9]} 22...
Nxa4 {[%clk 0:00:52.7]} 23. Bg2 {[%clk 0:00:26.3]} 23... Nxb2 {[%clk 0:00:41.2]}
24. Rfc1 {[%clk 0:00:25.7]} 24... Rac8 {[%clk 0:00:37.1]} 25. Rc2 {[%clk
0:00:22.1]} 25... Nd3 {[%clk 0:00:35.6]} 26. Rd1 {[%clk 0:00:20.5]} 26... Nc5
{[%clk 0:00:30.9]} 27. e6 {[%clk 0:00:19.3]} 27... Rfe8 {[%clk 0:00:26.7]} 28.
Nd4 {[%clk 0:00:19.2]} 28... Bxd4 {[%clk 0:00:26.3]} 29. Bxd4 {[%clk 0:00:19.2]}
29... c6 {[%clk 0:00:25.5]} 30. Bf6 {[%clk 0:00:17.7]} 30... Nxd5 {[%clk
0:00:24.4]} 31. Bxd5 {[%clk 0:00:15.2]} 31... cxd5 {[%clk 0:00:25.3]} 32. e7
{[%clk 0:00:13.1]} 32... Kf7 {[%clk 0:00:24.6]} 33. Bg5 {[%clk 0:00:12.8]} 33...
Ne6 {[%clk 0:00:23.2]} 34. Rxc8 {[%clk 0:00:12.2]} 34... Rxc8 {[%clk 0:00:24]}
35. Rxd5 {[%clk 0:00:11.7]} 35... Nxg5 {[%clk 0:00:23.1]} 36. hxg5 {[%clk
0:00:11.5]} 36... Kxe7 {[%clk 0:00:24]} 37. Rd2 {[%clk 0:00:10.4]} 37... Rc3
{[%clk 0:00:22.8]} 38. Kf2 {[%clk 0:00:10]} 38... Kd7 {[%clk 0:00:21.5]} 39. Kg2
{[%clk 0:00:09.5]} 39... Kc6 {[%clk 0:00:21]} 40. Re2 {[%clk 0:00:08.9]} 40...
Kd5 {[%clk 0:00:20.1]} 41. Kf2 {[%clk 0:00:06.7]} 41... Rd3 {[%clk 0:00:19.3]}
42. Kg2 {[%clk 0:00:06.5]} 42... b5 {[%clk 0:00:19.5]} 43. Rb2 {[%clk
0:00:06.1]} 43... a6 {[%clk 0:00:19.4]} 44. Kf2 {[%clk 0:00:06.2]} 44... Kc5
{[%clk 0:00:18.5]} 45. Re2 {[%clk 0:00:05.9]} 45... b4 {[%clk 0:00:17.6]} 46.
Re6 {[%clk 0:00:05.9]} 46... Rd2+ {[%clk 0:00:17.4]} 47. Kf3 {[%clk 0:00:06]}
47... Rxa2 {[%clk 0:00:18.3]} 48. Rxg6 {[%clk 0:00:06.2]} 48... b3 {[%clk
0:00:18.6]} 49. Rg8 {[%clk 0:00:06.6]} 49... Ra4 {[%clk 0:00:17.3]} 50. Rc8+
{[%clk 0:00:06.4]} 50... Kd4 {[%clk 0:00:16.8]} 51. Rb8 {[%clk 0:00:06.6]} 51...
Kc3 {[%clk 0:00:15.8]} 52. g6 {[%clk 0:00:06.4]} 52... Rb4 {[%clk 0:00:15.3]}
53. Rxb4 {[%clk 0:00:04.9]} 53... Kxb4 {[%clk 0:00:16.2]} 54. g7 {[%clk
0:00:05.6]} 54... b2 {[%clk 0:00:16.6]} 55. g8=Q {[%clk 0:00:06]} 55... Kc3
{[%clk 0:00:16.3]} 56. Qg7+ {[%clk 0:00:05.7]} 56... Kc2 {[%clk 0:00:16.4]} 57.
Qc7+ {[%clk 0:00:04.8]} 57... Kb3 {[%clk 0:00:15.4]} 58. Qb6+ {[%clk 0:00:04.8]}
58... Kc2 {[%clk 0:00:14.9]} 59. Qc6+ {[%clk 0:00:04.8]} 59... Kb3 {[%clk
0:00:14.7]} 60. Qd5+ {[%clk 0:00:04.1]} 60... Kc2 {[%clk 0:00:13.7]} 61. Qc4+
{[%clk 0:00:04.3]} 61... Kb1 {[%clk 0:00:11.7]} 62. Qxa6 {[%clk 0:00:04]} 62...
Kc1 {[%clk 0:00:11.4]} 63. Qc6+ {[%clk 0:00:04.2]} 63... Kb1 {[%clk 0:00:09.6]}
64. Qxd6 {[%clk 0:00:04]} 64... Ka2 {[%clk 0:00:08.6]} 65. Qa6+ {[%clk
0:00:03.9]} 65... Kb3 {[%clk 0:00:07.9]} 66. Qb5+ {[%clk 0:00:03.6]} 66... Kc2
{[%clk 0:00:08.1]} 67. Qxf5+ {[%clk 0:00:03.9]} 67... Kc1 {[%clk 0:00:07.6]} 68.
Qc5+ {[%clk 0:00:04]} 68... Kd2 {[%clk 0:00:07.6]} 69. Qb4+ {[%clk 0:00:04.4]}
69... Kc2 {[%clk 0:00:08]} 70. Qc4+ {[%clk 0:00:04.2]} 70... Kd2 {[%clk
0:00:08.1]} 71. Qb3 {[%clk 0:00:04.3]} 71... Kc1 {[%clk 0:00:08.4]} 72. g4
{[%clk 0:00:04.7]} 72... hxg4+ {[%clk 0:00:07.4]} 73. Kxg4 {[%clk 0:00:04.7]}
73... b1=Q {[%clk 0:00:02.4]} 74. Qxb1+ {[%clk 0:00:04.4]} 74... Kxb1 {[%clk
0:00:02.3]} 75. f5 {[%clk 0:00:05.3]} 75... Kc2 {[%clk 0:00:03.2]} 76. f6 {[%clk
0:00:05.9]} 76... Kd3 {[%clk 0:00:04.1]} 77. f7 {[%clk 0:00:06.5]} 77... Ke4
{[%clk 0:00:05]} 78. f8=Q {[%clk 0:00:06.9]} 78... Kd5 {[%clk 0:00:05.9]} 79.
Qe7 {[%clk 0:00:07.1]} 79... Kd4 {[%clk 0:00:05.9]} 80. Qe6 {[%clk 0:00:07.6]}
80... Kd3 {[%clk 0:00:06.8]} 81. Qe5 {[%clk 0:00:08]} 81... Kc4 {[%clk
0:00:07.7]} 82. Qd6 {[%clk 0:00:08.4]} 82... Kc3 {[%clk 0:00:07.2]} 83. Qd5
{[%clk 0:00:09.1]} 83... Kc2 {[%clk 0:00:08.1]} 84. Qd4 {[%clk 0:00:09.4]} 84...
Kb3 {[%clk 0:00:09]} 85. Qc5 {[%clk 0:00:09.8]} 85... Kb2 {[%clk 0:00:08.9]} 86.
Qc4 {[%clk 0:00:10]} 86... Ka3 {[%clk 0:00:08.7]} 87. Qb5 {[%clk 0:00:10.3]}
87... Ka2 {[%clk 0:00:09.6]} 88. Kf3 {[%clk 0:00:10.5]} 1-0

[Event "*** Titled Tuesday Blitz"]
[Site "Chess.com"]
[Date "2021.03.02"]
[Round "7"]
[White "Brave_spirit12"]
[Black "wannabe2700"]
[Result "1-0"]
[WhiteElo "2533"]
[BlackElo "2700"]
[TimeControl "180+1"]
[EndTime "11:22:21 PST"]
[Termination "Brave_spirit12 won by checkmate"]

1. e4 {[%clk 0:03:00.9]} 1... c6 {[%clk 0:02:56.7]} 2. Nc3 {[%clk 0:03:00.2]}
2... d5 {[%clk 0:02:57.6]} 3. Nf3 {[%clk 0:03:00.8]} 3... Bg4 {[%clk 0:02:56.8]}
4. h3 {[%clk 0:03:00.7]} 4... Bxf3 {[%clk 0:02:56.9]} 5. Qxf3 {[%clk 0:03:01.6]}
5... e6 {[%clk 0:02:57.1]} 6. d3 {[%clk 0:03:02.1]} 6... Bc5 {[%clk 0:02:49.7]}
7. Bd2 {[%clk 0:03:00.1]} 7... Nd7 {[%clk 0:02:45.2]} 8. O-O-O {[%clk
0:02:59.4]} 8... d4 {[%clk 0:02:36.6]} 9. Ne2 {[%clk 0:02:57.4]} 9... Ne7 {[%clk
0:02:31.1]} 10. Qg3 {[%clk 0:02:56]} 10... O-O {[%clk 0:02:26]} 11. Bh6 {[%clk
0:02:54.3]} 11... Ng6 {[%clk 0:02:25.7]} 12. Bg5 {[%clk 0:02:52.5]} 12... f6
{[%clk 0:02:22.7]} 13. Bd2 {[%clk 0:02:45.5]} 13... a5 {[%clk 0:02:22]} 14. h4
{[%clk 0:02:44.5]} 14... a4 {[%clk 0:02:20.8]} 15. h5 {[%clk 0:02:44.3]} 15...
Ne7 {[%clk 0:02:21]} 16. Nf4 {[%clk 0:02:42.3]} 16... Kf7 {[%clk 0:01:37.9]} 17.
Qh3 {[%clk 0:02:20.2]} 17... f5 {[%clk 0:01:37]} 18. g4 {[%clk 0:02:18.3]} 18...
e5 {[%clk 0:01:33.7]} 19. Ng6 {[%clk 0:01:49.3]} 19... hxg6 {[%clk 0:01:32.2]}
20. hxg6+ {[%clk 0:01:49.7]} 20... Nxg6 {[%clk 0:01:23.5]} 21. gxf5 {[%clk
0:01:48.8]} 21... Nf4 {[%clk 0:01:22.4]} 22. Bxf4 {[%clk 0:01:44.7]} 22... exf4
{[%clk 0:01:23.3]} 23. Be2 {[%clk 0:01:45.6]} 23... Rh8 {[%clk 0:01:19.9]} 24.
Bh5+ {[%clk 0:01:41.4]} 24... Ke7 {[%clk 0:01:19.5]} 25. Rdg1 {[%clk 0:01:42]}
25... Rh7 {[%clk 0:01:09.1]} 26. Qh4+ {[%clk 0:01:15.8]} 26... Kf8 {[%clk
0:00:51.9]} 27. Qxf4 {[%clk 0:01:13]} 27... Qb8 {[%clk 0:00:47.1]} 28. Qg5
{[%clk 0:01:05.1]} 28... Bd6 {[%clk 0:00:45.1]} 29. Kb1 {[%clk 0:01:02.9]} 29...
Nf6 {[%clk 0:00:30.3]} 30. Bg6 {[%clk 0:00:50.1]} 30... Rxh1 {[%clk 0:00:30.2]}
31. Rxh1 {[%clk 0:00:51]} 31... Ke7 {[%clk 0:00:23.1]} 32. Bh5 {[%clk
0:00:29.9]} 32... Qh8 {[%clk 0:00:20.3]} 33. f4 {[%clk 0:00:29]} 33... Kd7
{[%clk 0:00:19.8]} 34. e5 {[%clk 0:00:29]} 34... Be7 {[%clk 0:00:17.1]} 35. Bf3
{[%clk 0:00:25.3]} 35... Qf8 {[%clk 0:00:15]} 36. exf6 {[%clk 0:00:20.8]} 36...
Bxf6 {[%clk 0:00:15.9]} 37. Qg6 {[%clk 0:00:21.1]} 37... Re8 {[%clk 0:00:15.6]}
38. Be4 {[%clk 0:00:20.2]} 38... Kc7 {[%clk 0:00:15.5]} 39. a3 {[%clk
0:00:16.9]} 39... Kb6 {[%clk 0:00:13.6]} 40. Rg1 {[%clk 0:00:09.4]} 40... Qe7
{[%clk 0:00:13.3]} 41. Qg3 {[%clk 0:00:09.1]} 41... Rh8 {[%clk 0:00:13.3]} 42.
Qf2 {[%clk 0:00:09]} 42... Qd6 {[%clk 0:00:13.3]} 43. Rg6 {[%clk 0:00:08.7]}
43... Qe7 {[%clk 0:00:08.6]} 44. Qg1 {[%clk 0:00:08.2]} 44... Qf8 {[%clk
0:00:08.4]} 45. c3 {[%clk 0:00:08.2]} 45... Qd6 {[%clk 0:00:07.1]} 46. cxd4
{[%clk 0:00:07.6]} 46... Qxd4 {[%clk 0:00:08]} 47. Qxd4+ {[%clk 0:00:04.8]}
47... Bxd4 {[%clk 0:00:08.9]} 48. Rg2 {[%clk 0:00:04.6]} 48... Rh1+ {[%clk
0:00:08.6]} 49. Ka2 {[%clk 0:00:04.6]} 49... Bf6 {[%clk 0:00:08.9]} 50. Rxg7
{[%clk 0:00:04.3]} 50... Rh2 {[%clk 0:00:07.9]} 51. Rg2 {[%clk 0:00:04.8]} 51...
Rh4 {[%clk 0:00:06]} 52. Rf2 {[%clk 0:00:04]} 52... Bd4 {[%clk 0:00:05.8]} 53.
Rc2 {[%clk 0:00:02.8]} 53... Bf6 {[%clk 0:00:05.4]} 54. Rc4 {[%clk 0:00:02.9]}
54... Rxf4 {[%clk 0:00:05.5]} 55. Rxa4 {[%clk 0:00:03.1]} 55... Kc7 {[%clk
0:00:05.3]} 56. Rb4 {[%clk 0:00:03.4]} 56... b5 {[%clk 0:00:05.9]} 57. Rb3
{[%clk 0:00:03.3]} 57... Rf2 {[%clk 0:00:05.9]} 58. Rb4 {[%clk 0:00:03.1]} 58...
Kb6 {[%clk 0:00:06.1]} 59. Rb3 {[%clk 0:00:03.2]} 59... c5 {[%clk 0:00:06.2]}
60. Bd5 {[%clk 0:00:03.4]} 60... Ka5 {[%clk 0:00:05.6]} 61. Bc6 {[%clk
0:00:03.6]} 61... b4 {[%clk 0:00:05.5]} 62. axb4+ {[%clk 0:00:03.9]} 62... cxb4
{[%clk 0:00:06.2]} 63. Be4 {[%clk 0:00:04.5]} 63... Bd4 {[%clk 0:00:06.6]} 64.
Kb1 {[%clk 0:00:03.8]} 64... Ka4 {[%clk 0:00:06.8]} 65. Ka2 {[%clk 0:00:04.4]}
65... Be5 {[%clk 0:00:06.3]} 66. Bc6+ {[%clk 0:00:04.7]} 66... Ka5 {[%clk
0:00:06.4]} 67. Bd7 {[%clk 0:00:05.4]} 67... Rf1 {[%clk 0:00:05.6]} 68. Be6
{[%clk 0:00:05.3]} 68... Bd4 {[%clk 0:00:05.9]} 69. Bd5 {[%clk 0:00:05]} 69...
Ka4 {[%clk 0:00:06.2]} 70. Bc6+ {[%clk 0:00:04.9]} 70... Ka5 {[%clk 0:00:06.7]}
71. Bd7 {[%clk 0:00:05.8]} 71... Rf4 {[%clk 0:00:06.3]} 72. Be6 {[%clk
0:00:05.8]} 72... Bc5 {[%clk 0:00:06.1]} 73. d4 {[%clk 0:00:05.2]} 73... Bxd4
{[%clk 0:00:06]} 74. Rd3 {[%clk 0:00:05.9]} 74... Kb5 {[%clk 0:00:04.8]} 75. Kb3
{[%clk 0:00:05.8]} 75... Kc5 {[%clk 0:00:04]} 76. Rd2 {[%clk 0:00:04.6]} 76...
Kc6 {[%clk 0:00:02.7]} 77. Rc2+ {[%clk 0:00:04.8]} 77... Kd6 {[%clk 0:00:03]}
78. Rc4 {[%clk 0:00:04.4]} 78... Ke5 {[%clk 0:00:03.5]} 79. Rxb4 {[%clk
0:00:04]} 79... Rf2 {[%clk 0:00:03.9]} 80. Rb5+ {[%clk 0:00:04.3]} 80... Kf6
{[%clk 0:00:04.2]} 81. Ka2 {[%clk 0:00:04.9]} 81... Be5 {[%clk 0:00:04.1]} 82.
Ka3 {[%clk 0:00:05.2]} 82... Ke7 {[%clk 0:00:04.6]} 83. b4 {[%clk 0:00:05.7]}
83... Rf1 {[%clk 0:00:03.9]} 84. Rb7+ {[%clk 0:00:05.9]} 84... Kd6 {[%clk
0:00:04.5]} 85. Rd7+ {[%clk 0:00:06.2]} 85... Kc6 {[%clk 0:00:04.9]} 86. Kb3
{[%clk 0:00:06.9]} 86... Rf4 {[%clk 0:00:04.6]} 87. b5+ {[%clk 0:00:05.9]} 87...
Kb6 {[%clk 0:00:04.6]} 88. Rd5 {[%clk 0:00:06.1]} 88... Bc7 {[%clk 0:00:03.8]}
89. Bd7 {[%clk 0:00:06.4]} 89... Rf3+ {[%clk 0:00:02.9]} 90. Kc4 {[%clk
0:00:06.3]} 90... Rf4+ {[%clk 0:00:03.2]} 91. Rd4 {[%clk 0:00:06.7]} 91... Rf2
{[%clk 0:00:02.5]} 92. Kd5 {[%clk 0:00:07]} 92... Rf3 {[%clk 0:00:01.8]} 93. Ke6
{[%clk 0:00:07]} 93... Re3+ {[%clk 0:00:02]} 94. Kf7 {[%clk 0:00:07.3]} 94...
Be5 {[%clk 0:00:02.5]} 95. Rd5 {[%clk 0:00:06.9]} 95... Bb2 {[%clk 0:00:02.8]}
96. Bc6 {[%clk 0:00:06.9]} 96... Ba3 {[%clk 0:00:02.8]} 97. f6 {[%clk
0:00:06.1]} 97... Re1 {[%clk 0:00:02.7]} 98. Kg7 {[%clk 0:00:03.8]} 98... Rg1+
{[%clk 0:00:02.9]} 99. Kf7 {[%clk 0:00:03.3]} 99... Rf1 {[%clk 0:00:03.8]} 100.
Ke6 {[%clk 0:00:03.6]} 100... Bb2 {[%clk 0:00:04.3]} 101. f7 {[%clk 0:00:03.8]}
101... Rf6+ {[%clk 0:00:04.5]} 102. Ke7 {[%clk 0:00:04.4]} 102... Rf2 {[%clk
0:00:04.8]} 103. Ke8 {[%clk 0:00:03.6]} 103... Ba3 {[%clk 0:00:05.1]} 104. Re5
{[%clk 0:00:03.8]} 104... Rf1 {[%clk 0:00:05.1]} 105. Re7 {[%clk 0:00:04.2]}
105... Bxe7 {[%clk 0:00:04.3]} 106. Kxe7 {[%clk 0:00:05.1]} 106... Re1+ {[%clk
0:00:03.1]} 107. Kf8 {[%clk 0:00:03]} 107... Rf1 {[%clk 0:00:04]} 108. Be8
{[%clk 0:00:03.1]} 108... Rg1 {[%clk 0:00:03.8]} 109. Ke7 {[%clk 0:00:03.1]}
109... Re1+ {[%clk 0:00:03.9]} 110. Kf6 {[%clk 0:00:03.2]} 110... Rf1+ {[%clk
0:00:04.3]} 111. Kg7 {[%clk 0:00:02.4]} 111... Rg1+ {[%clk 0:00:04.7]} 112. Kf8
{[%clk 0:00:03.3]} 112... Rf1 {[%clk 0:00:05.3]} 113. Bd7 {[%clk 0:00:03.8]}
113... Rg1 {[%clk 0:00:05.3]} 114. Ke7 {[%clk 0:00:04.2]} 114... Re1+ {[%clk
0:00:05.8]} 115. Kf6 {[%clk 0:00:04.8]} 115... Rf1+ {[%clk 0:00:06]} 116. Bf5
{[%clk 0:00:05.4]} 116... Rc1 {[%clk 0:00:05.5]} 117. f8=Q {[%clk 0:00:05.5]}
117... Rc5 {[%clk 0:00:05.4]} 118. Qxc5+ {[%clk 0:00:04.9]} 118... Kxc5 {[%clk
0:00:05.4]} 119. Bd7 {[%clk 0:00:05.6]} 119... Kd6 {[%clk 0:00:05.9]} 120. Bc6
{[%clk 0:00:06.5]} 120... Kc7 {[%clk 0:00:06.4]} 121. Ke5 {[%clk 0:00:07.4]}
121... Kb6 {[%clk 0:00:07.3]} 122. Kd5 {[%clk 0:00:08.3]} 122... Kc7 {[%clk
0:00:07.8]} 123. Kc5 {[%clk 0:00:09.2]} 123... Kb8 {[%clk 0:00:08.7]} 124. b6
{[%clk 0:00:08.8]} 124... Kc8 {[%clk 0:00:09.6]} 125. Kd6 {[%clk 0:00:09.3]}
125... Kb8 {[%clk 0:00:10.5]} 126. b7 {[%clk 0:00:09.3]} 126... Ka7 {[%clk
0:00:11]} 127. Kc7 {[%clk 0:00:09.8]} 127... Ka6 {[%clk 0:00:11.9]} 128. b8=Q
{[%clk 0:00:10]} 128... Ka5 {[%clk 0:00:12.2]} 129. Qb5# {[%clk 0:00:10.9]} 1-0

[Event "*** Titled Tuesday Blitz"]
[Site "Chess.com"]
[Date "2021.03.02"]
[Round "8"]
[White "KruHor"]
[Black "NiranjanNavalgund"]
[Result "1-0"]
[WhiteElo "2537"]
[BlackElo "2432"]
[TimeControl "180+1"]
[EndTime "11:24:35 PST"]
[Termination "KruHor won by resignation"]

1. e4 {[%clk 0:02:58.1]} 1... e5 {[%clk 0:02:58.2]} 2. d4 {[%clk 0:02:57.7]}
2... exd4 {[%clk 0:02:57.8]} 3. Nf3 {[%clk 0:02:57.8]} 3... Nc6 {[%clk
0:02:57.7]} 4. c3 {[%clk 0:02:57.4]} 4... d5 {[%clk 0:02:57.2]} 5. exd5 {[%clk
0:02:56.7]} 5... Qxd5 {[%clk 0:02:56.8]} 6. cxd4 {[%clk 0:02:56.3]} 6... Bb4+
{[%clk 0:02:56.5]} 7. Nc3 {[%clk 0:02:55.7]} 7... Bg4 {[%clk 0:02:55.9]} 8. Be2
{[%clk 0:02:54.9]} 8... O-O-O {[%clk 0:02:46.5]} 9. O-O {[%clk 0:02:54]} 9...
Bxc3 {[%clk 0:02:45.2]} 10. bxc3 {[%clk 0:02:53.3]} 10... Nf6 {[%clk 0:02:31.3]}
11. h3 {[%clk 0:02:52.3]} 11... Bxf3 {[%clk 0:02:30.6]} 12. Bxf3 {[%clk
0:02:51.6]} 12... Qd6 {[%clk 0:02:31.5]} 13. Rb1 {[%clk 0:02:46.5]} 13... Na5
{[%clk 0:02:29.2]} 14. Qa4 {[%clk 0:02:42.3]} 14... Qa6 {[%clk 0:02:23.1]} 15.
Bxb7+ {[%clk 0:02:36]} 15... Qxb7 {[%clk 0:02:17.4]} 16. Rxb7 {[%clk 0:02:35]}
16... Nxb7 {[%clk 0:02:18.2]} 17. Qxa7 {[%clk 0:02:34.4]} 1-0